bitfinex/quotes_ETHUSD_20241130
["timestamp","ask_amount","ask_price","bid_price","bid_amount"]
[1733009674769,0.55,3713.1,3712.1,3.0]
[1733009676056,0.55,3712.9,3711.6,4.06943899]
[1733009676383,0.55,3712.7,3711.6,2.54313899]
[1733009676556,0.55,3712.5,3711.6,2.54313899]
[1733009677481,0.55,3712.5,3711.7,3.0]
[1733009678475,0.55,3712.3,3711.3,1.5263]
[1733009678645,0.55,3712.3,3711.3,4.5263]
[1733009679286,0.75694,3712.3,3711.3,3.0]
[1733009680197,0.55,3712.1,3711.3,3.0]
[1733009685249,0.55,3712.1,3710.9,3.0]
[1733009686297,1.5194,3712.2,3710.8,2.54313899]
[1733009686298,2.2099,3712.2,3710.8,2.54313899]
[1733009686590,1.6599,3711.9,3710.6,1.6231]
[1733009686894,1.6599,3711.7,3710.4,2.54313899]
[1733009687084,0.55,3711.4,3710.2,1.6231]
[1733009687682,0.55,3711.2,3710.0,4.16623899]
[1733009688668,0.55,3711.2,3709.8,0.0269453]
[1733009688669,0.55,3711.0,3709.8,0.0269453]
[1733009688961,0.55,3710.8,3709.7,1.6231]
[1733009691876,1.6599,3711.1,3710.0,3.0]
[1733009692082,1.6599,3711.8,3710.2,1.6231]
[1733009692406,1.6599,3711.8,3710.2,1.65004301]
[1733009692606,1.6599,3711.8,3710.4,3.0]
[1733009692763,1.6599,3711.8,3710.5,0.026943]
[1733009693217,1.6599,3711.8,3710.8,4.6231]
[1733009694721,0.55,3711.7,3710.8,4.6231]
[1733009695426,1.6599,3712.7,3711.2,3.0]
[1733009695583,0.19105494,3712.6,3711.2,3.02693589]
[1733009696389,1.6599,3712.5,3710.8,4.6231]
[1733009696810,1.6599,3712.3,3710.8,4.6231]
[1733009697083,0.55,3712.5,3710.8,4.6231]
[1733009697314,0.25062083,3712.9,3710.8,3.0]
[1733009697315,1.6599,3712.2,3710.8,3.0]
[1733009697514,1.6599,3712.2,3710.5,1.6231]
[1733009697727,0.77099,3712.1,3710.5,1.65004249]
[1733009698031,0.55,3711.9,3710.5,1.6231]
[1733009698628,1.5944,3711.7,3710.4,3.0]
[1733009698834,0.55,3711.6,3710.1,1.51]
[1733009699527,1.5944,3711.5,3710.1,1.51]
[1733009699689,0.55,3711.4,3710.1,1.51]
[1733009700517,0.55,3711.4,3710.2,0.02694337]
[1733009700762,0.55,3711.4,3710.4,3.0]
[1733009703265,0.55,3711.4,3710.5,0.02694559]
[1733009703448,1.90877758,3711.8,3710.7,2.54313899]
[1733009703624,1.6572,3711.8,3710.8,3.0]
[1733009703825,1.6572,3711.8,3710.5,1.5101]
[1733009704250,1.6572,3711.8,3710.4,3.0]
[1733009704718,1.90891418,3711.7,3710.0,3.0]
[1733009704889,0.55,3711.4,3710.0,3.0]
[1733009705273,0.55,3711.2,3709.9,4.05323899]
[1733009705917,3.0,3711.8,3709.4,0.02694565]
[1733009705918,0.55,3711.0,3709.5,4.05323899]
[1733009706216,0.55,3710.8,3709.9,2.54313899]
[1733009706375,0.55,3711.1,3710.0,1.5101]
[1733009706576,0.40252414,3712.0,3710.6,1.5101]
[1733009706925,0.25177273,3712.2,3710.9,2.54313899]
[1733009707072,1.6572,3712.3,3710.9,2.54313899]
[1733009707415,0.25177485,3712.2,3711.0,3.0]
[1733009707712,1.6572,3712.3,3711.0,3.0]
[1733009707949,0.16572,3712.2,3711.0,3.0]
[1733009708093,0.55,3712.1,3711.0,3.0]
[1733009708720,0.16572,3712.2,3711.0,3.0]
[1733009708891,1.6572,3712.3,3711.0,3.0]
[1733009709231,1.6572,3712.3,3711.4,4.5101]
[1733009709433,1.6572,3712.3,3711.4,4.53703661]
[1733009709640,1.6572,3712.3,3711.4,4.5101]
[1733009710705,0.55,3712.2,3711.4,4.5101]
[1733009711599,0.55,3712.2,3711.7,2.54313899]
[1733009712697,0.53418555,3713.6,3711.7,2.54313899]
[1733009712698,1.90889105,3713.1,3711.8,3.02693624]
[1733009712898,1.6572,3713.1,3712.2,3.0]
[1733009714244,1.6572,3713.1,3712.3,0.02693091]
[1733009714428,1.6572,3713.5,3712.6,1.5101]
[1733009714635,1.82292,3713.5,3712.6,1.5101]
[1733009714939,1.82292,3713.5,3712.2,3.0]
[1733009715328,1.82292,3713.5,3711.6,2.54313899]
[1733009715655,1.82292,3713.5,3711.1,1.5101]
[1733009715656,1.6572,3713.1,3711.1,1.5101]
[1733009715946,1.6572,3713.1,3711.2,2.54313899]
[1733009715947,1.6572,3712.8,3711.2,2.54313899]
[1733009716247,0.55,3712.6,3711.2,2.54313899]
[1733009716633,0.22072,3712.7,3711.2,2.54313899]
[1733009716634,0.55,3712.4,3711.2,2.54313899]
[1733009716821,0.55,3712.2,3711.2,2.54313899]
[1733009717207,1.6572,3712.1,3710.8,2.54313899]
[1733009717453,0.55,3712.0,3710.8,2.54313899]
[1733009717618,0.55,3711.8,3710.8,2.54313899]
[1733009717955,0.27572,3711.9,3710.8,2.54313899]
[1733009717956,0.55,3711.6,3710.8,2.54313899]
[1733009718648,0.55,3711.6,3710.9,3.0]
[1733009719943,1.6572,3712.0,3711.3,4.5101]
[1733009720257,1.6572,3712.6,3711.6,2.54313899]
[1733009721217,0.55,3712.5,3711.6,2.54313899]
[1733009722439,0.55,3712.5,3711.7,3.0]
[1733009726356,1.5703,3712.2,3710.0,1.6542]
[1733009726567,0.55,3711.8,3710.5,2.54313899]
[1733009726748,0.55,3711.8,3710.5,2.57008036]
[1733009727073,1.5703,3711.7,3710.1,2.54313899]
[1733009727269,1.5703,3711.9,3710.1,2.54313899]
[1733009727849,0.55,3711.6,3710.1,2.54313899]
[1733009728048,1.5703,3711.5,3710.1,2.54313899]
[1733009728346,1.5703,3711.5,3710.0,1.6542]
[1733009728347,1.5703,3711.1,3709.7,2.54313899]
[1733009728564,0.55,3711.0,3709.8,0.02694606]
[1733009729144,0.55,3711.0,3710.1,2.54313899]
[1733009729573,0.55,3711.0,3710.2,3.0]
[1733009732052,0.07042625,3710.9,3710.2,3.0]
[1733009732538,0.55,3710.8,3709.7,5.54313899]
[1733009735470,0.55,3711.0,3710.5,2.54313899]
[1733009735789,1.5703,3711.1,3710.5,2.54313899]
[1733009739541,1.5703,3712.0,3710.6,3.0]
[1733009739941,1.5703,3711.8,3710.6,3.0]
[1733009740680,1.5703,3711.8,3711.1,3.0]
[1733009740884,0.07009424,3711.9,3711.4,2.54313899]
[1733009741039,1.6151,3712.1,3711.4,2.54313899]
[1733009742003,1.6151,3712.8,3711.9,3.0]
[1733009742365,1.6151,3713.6,3712.3,3.0]
[1733009743511,0.55,3713.4,3712.3,3.0]
[1733009743866,0.07044242,3713.3,3712.3,3.0]
[1733009744067,1.6151,3713.2,3712.3,3.0]
[1733009744263,1.68555361,3713.2,3712.3,3.0]
[1733009749926,1.68555361,3713.2,3710.8,0.1410628]
[1733009749927,0.55,3713.1,3711.9,3.0]
[1733009750108,0.55,3712.9,3711.9,3.0]
[1733009750423,1.68574636,3712.8,3711.4,4.09123899]
[1733009750641,0.55,3712.7,3711.4,3.59203899]
[1733009750798,0.55,3712.5,3711.0,4.09123899]
[1733009750992,0.55,3712.3,3711.0,4.09123899]
[1733009751240,0.55,3712.1,3711.0,4.09123899]
[1733009751606,0.07038708,3712.0,3711.0,4.09123899]
[1733009752509,0.07038708,3712.0,3711.1,3.0]
[1733009753915,1.6151,3711.9,3711.1,3.0]
[1733009754317,0.07030627,3711.8,3711.1,3.0]
[1733009755302,0.07030627,3711.8,3711.0,2.54313899]
[1733009755499,0.2938469,3711.8,3710.6,7.09123899]
[1733009755698,0.07030627,3711.8,3710.6,7.09123899]
[1733009755950,0.07030627,3711.8,3711.5,3.0]
[1733009756144,0.07030627,3711.8,3711.6,1.57503401]
[1733009756442,1.6151,3713.0,3711.8,1.5481]
[1733009756646,1.6151,3713.0,3712.2,2.54313899]
[1733009758548,2.1651,3713.8,3712.2,2.54313899]
[1733009758902,0.55,3713.6,3712.2,2.54313899]
[1733009759303,0.55,3713.4,3712.2,2.54313899]
[1733009759543,0.55,3713.4,3712.3,1.5481]
[1733009759715,0.06773766,3713.3,3712.3,1.5481]
[1733009763864,0.06773766,3713.3,3712.3,4.5481]
[1733009764055,0.55,3713.7,3712.3,4.5481]
[1733009764576,0.55,3713.5,3712.3,4.5481]
[1733009764982,0.55,3713.3,3712.3,4.5481]
[1733009765286,0.55,3713.1,3712.3,1.5481]
[1733009765585,0.55,3713.1,3712.3,3.0]
[1733009765753,0.06536783,3713.0,3712.0,1.6304]
[1733009766076,0.55,3712.9,3712.0,1.6304]
[1733009766277,0.61548336,3712.9,3712.0,1.6304]
[1733009766482,0.55,3712.9,3712.0,1.6304]
[1733009766677,0.55,3712.8,3712.0,1.6304]
[1733009767538,0.06542344,3712.7,3712.0,1.6304]
[1733009767939,0.55,3712.8,3712.0,1.6304]
[1733009768181,1.567,3713.2,3712.1,0.02693403]
[1733009768182,1.81820119,3713.2,3712.1,0.02693403]
[1733009768392,0.06542344,3712.7,3712.6,2.54313899]
[1733009768546,1.567,3713.6,3712.7,3.0]
[1733009768747,1.567,3714.0,3712.9,1.6304]
[1733009768947,0.06557122,3713.5,3713.0,0.02692582]
[1733009769166,0.25120119,3713.9,3712.9,1.6304]
[1733009769346,0.06555048,3713.4,3712.9,1.6304]
[1733009769549,0.25147211,3713.9,3712.9,1.6304]
[1733009770047,0.3171571,3713.8,3712.9,1.6304]
[1733009770354,0.25147211,3713.7,3712.9,1.6304]
[1733009770665,0.06538898,3713.6,3712.9,1.6304]
[1733009770987,1.567,3713.7,3712.5,1.6304]
[1733009771193,0.06536822,3713.5,3712.5,1.6304]
[1733009771354,0.25171567,3713.4,3712.5,1.6304]
[1733009771548,0.25171567,3713.4,3712.1,1.6304]
[1733009771549,0.55,3713.3,3712.1,1.6304]
[1733009771770,0.55,3713.1,3712.1,1.6304]
[1733009772149,0.06550257,3713.2,3712.2,0.02693217]
[1733009772361,0.06550257,3713.2,3712.5,1.6304]
[1733009772563,0.06550257,3713.2,3712.8,2.54313899]
[1733009772777,1.567,3713.8,3712.8,2.54313899]
[1733009773592,1.567,3714.1,3712.9,4.6304]
[1733009773951,0.25171752,3714.0,3712.9,4.6304]
[1733009774150,0.98358927,3713.9,3712.9,4.6304]
[1733009774458,0.73187175,3713.9,3712.9,4.6304]
[1733009774975,0.25170264,3713.8,3712.9,1.6304]
[1733009775151,0.55,3713.7,3712.9,1.6304]
[1733009775355,0.55,3713.5,3712.4,1.6304]
[1733009775577,0.55,3713.3,3712.2,3.0]
[1733009776090,0.06554682,3713.2,3712.2,3.0]
[1733009776663,1.567,3713.1,3712.2,3.0]
[1733009776863,1.63252607,3713.1,3712.2,3.0]
[1733009777580,1.63252607,3713.1,3711.8,3.0]
[1733009777797,0.24342307,3713.0,3711.8,4.6304]
[1733009778369,0.55,3712.9,3711.8,4.6304]
[1733009778610,0.61548088,3712.9,3711.8,4.6304]
[1733009778986,1.6373,3712.8,3711.8,4.6304]
[1733009779184,0.06543937,3712.7,3711.8,4.6304]
[1733009779792,0.06543937,3712.7,3711.8,5.70843]
[1733009780513,0.06543937,3712.7,3712.1,3.17537077]
[1733009780716,1.6373,3713.2,3712.3,1.5885]
[1733009780901,1.6097,3713.5,3712.4,0.02692925]
[1733009781085,1.6097,3713.5,3712.3,1.61542916]
[1733009781775,1.6097,3713.5,3712.5,3.17537077]
[1733009781976,0.25170017,3713.9,3712.7,1.519]
[1733009782269,1.6097,3714.1,3712.7,1.519]
[1733009782270,1.6097,3714.1,3712.8,0.02692644]
[1733009782473,0.2517171,3714.0,3712.8,0.02692644]
[1733009782673,1.6097,3714.1,3712.7,1.54592646]
[1733009782976,0.50340417,3714.0,3712.7,1.54592646]
[1733009783183,0.61552251,3713.9,3712.7,1.54592646]
[1733009783831,0.61552251,3713.9,3712.7,1.519]
[1733009784130,0.61552251,3713.9,3712.6,3.0]
[1733009784131,0.55,3713.7,3712.6,3.0]
[1733009784341,0.25174649,3713.6,3712.3,1.519]
[1733009784625,0.80174649,3713.5,3712.3,1.519]
[1733009784830,0.06541876,3713.4,3712.3,1.519]
[1733009785181,0.55,3713.3,3712.3,1.519]
[1733009785387,1.67507725,3713.2,3712.3,1.519]
[1733009786484,1.67507725,3713.2,3712.2,3.0]
[1733009786688,0.22250773,3713.1,3712.2,3.0]
[1733009786918,0.28791763,3713.1,3712.2,3.0]
[1733009788525,0.0654099,3713.1,3712.2,3.0]
[1733009789227,0.0654099,3713.1,3712.5,3.17537077]
[1733009789431,1.6097,3713.8,3712.7,1.519]
[1733009789641,0.31749817,3713.7,3712.7,1.519]
[1733009789868,0.06550374,3713.7,3712.7,1.519]
[1733009790064,0.06550374,3713.7,3713.0,3.0]
[1733009790562,1.6097,3713.8,3713.0,3.0]
[1733009790737,2.01242231,3714.1,3713.0,3.0]
[1733009790939,0.06551601,3713.7,3713.0,3.0]
[1733009791129,1.6097,3714.1,3713.0,3.02692425]
[1733009791324,0.06549526,3713.6,3713.0,3.02692425]
[1733009791521,1.6097,3714.1,3713.0,3.0]
[1733009791748,1.6097,3714.1,3713.0,3.02692398]
[1733009792167,1.6097,3714.1,3713.0,3.0]
[1733009792662,1.6097,3714.1,3713.1,1.519]
[1733009792969,0.16097,3714.0,3713.0,3.0]
[1733009793142,0.47859371,3714.0,3713.0,3.0]
[1733009793325,1.6097,3713.9,3712.5,3.17537077]
[1733009793526,1.6097,3713.8,3712.5,3.17537077]
[1733009793832,0.55,3713.7,3712.5,3.17537077]
[1733009794022,1.6097,3713.4,3712.5,3.17537077]
[1733009794226,0.0658181,3713.3,3712.5,3.17537077]
[1733009794651,0.0658181,3713.3,3712.1,4.69437077]
[1733009794892,0.0658181,3713.3,3712.2,2.5467119]
[1733009795974,0.0658181,3713.3,3712.3,3.0]
[1733009796151,0.2606633,3713.3,3712.3,3.0]
[1733009797051,0.55,3713.2,3712.3,3.0]
[1733009797257,0.55,3713.0,3711.8,5.1437419]
[1733009797685,0.06558457,3712.9,3711.8,5.1437419]
[1733009798219,1.6097,3712.8,3711.8,3.6247419]
[1733009798413,0.28807152,3712.7,3711.8,3.6247419]
[1733009798614,1.6097,3712.6,3711.8,3.6247419]
[1733009799120,0.06550155,3712.5,3711.8,3.6247419]
[1733009799493,0.06550155,3712.5,3711.9,3.0]
[1733009800373,1.6097,3712.6,3711.9,3.0]
[1733009801220,0.06545797,3712.5,3711.9,3.0]
[1733009802312,1.6097,3712.6,3711.9,3.0]
[1733009802732,0.06545797,3712.5,3711.9,3.0]
[1733009802885,1.6097,3712.6,3711.9,3.0]
[1733009803421,0.06545797,3712.5,3711.9,3.0]
[1733009803719,1.6097,3712.6,3711.9,3.0]
[1733009804082,0.06321278,3712.5,3712.0,1.56663495]
[1733009804282,0.06321278,3712.5,3712.4,3.0]
[1733009804494,1.5643,3713.0,3712.4,3.0]
[1733009804818,0.06330841,3712.9,3712.4,3.0]
[1733009805187,0.06330841,3712.9,3711.8,1.07803]
[1733009805188,0.06330841,3712.9,3711.8,3.6247419]
[1733009805521,1.5643,3712.8,3711.9,3.0]
[1733009805825,1.5643,3712.8,3712.2,2.5467119]
[1733009805996,1.5643,3712.8,3712.3,3.0]
[1733009806391,1.5643,3712.8,3711.8,2.5467119]
[1733009806620,1.5643,3712.8,3711.9,3.0]
[1733009810289,1.6383,3712.6,3711.9,3.0]
[1733009810724,0.06323775,3712.5,3711.9,3.0]
[1733009815043,0.06323775,3712.5,3712.3,3.0]
[1733009815224,1.11666312,3713.8,3712.3,3.0]
[1733009815225,1.6101,3713.3,3712.3,3.0]
[1733009815560,1.6101,3713.3,3712.9,3.0]
[1733009817213,0.40300212,3714.2,3713.0,0.02693003]
[1733009817423,1.92047082,3714.1,3713.2,2.5467119]
[1733009817620,0.48421007,3714.0,3713.2,2.5467119]
[1733009817820,0.05856394,3713.9,3713.2,2.5467119]
[1733009818944,0.05856394,3713.9,3713.3,0.02692706]
[1733009819252,0.05856394,3713.9,3713.2,2.5467119]
[1733009819560,1.6101,3713.8,3712.9,3.0]
[1733009819743,0.21527871,3713.7,3712.9,3.0]
[1733009820215,1.6101,3713.5,3712.4,2.5467119]
[1733009820556,1.6101,3713.5,3712.5,3.0]
[1733009820557,0.60857041,3713.4,3712.5,3.0]
[1733009822345,0.55,3713.2,3712.0,1.5281]
[1733009822657,1.58986523,3713.1,3712.2,2.5467119]
[1733009823031,0.55,3712.8,3711.8,2.5467119]
[1733009823232,1.58969224,3712.7,3711.8,2.5467119]
[1733009823761,0.55,3712.6,3711.8,2.5467119]
[1733009824135,0.05638153,3712.5,3711.8,2.5467119]
[1733009824350,0.05638153,3712.5,3711.9,3.0]
[1733009824722,0.55,3712.3,3711.8,2.5467119]
[1733009824921,1.5333,3712.4,3711.4,2.5467119]
[1733009825124,1.5895243,3712.2,3711.4,2.5467119]
[1733009825361,1.5333,3712.2,3711.4,2.5467119]
[1733009825528,1.5333,3712.0,3711.4,2.5467119]
[1733009825944,0.05571421,3711.9,3711.4,2.5467119]
[1733009826278,0.05571421,3711.9,3711.5,3.0]
[1733009829272,0.05571421,3711.9,3711.8,2.5467119]
[1733009829629,1.5333,3712.0,3711.8,2.5467119]
[1733009830241,1.5333,3712.0,3711.5,3.0]
[1733009830754,1.5333,3712.0,3711.4,2.5467119]
[1733009830755,2.0526,3712.8,3711.8,2.5467119]
[1733009830925,1.5026,3712.8,3712.3,3.0]
[1733009831127,0.05490424,3712.7,3712.6,3.0]
[1733009831351,0.05490424,3712.7,3712.6,3.02692862]
[1733009831551,0.25181422,3713.8,3712.7,3.0]
[1733009831765,1.5026,3714.1,3712.5,5.0934238]
[1733009832030,0.15026,3714.0,3713.2,2.5467119]
[1733009832176,0.20313989,3714.0,3713.2,2.5467119]
[1733009832339,0.20313989,3714.0,3713.2,2.4967119]
[1733009832539,0.55,3713.9,3713.2,2.4967119]
[1733009832837,0.05295645,3713.8,3713.2,2.4967119]
[1733009833039,0.55,3713.9,3713.2,2.4967119]
[1733009833276,0.79545407,3713.9,3713.2,2.4967119]
[1733009836206,1.5026,3714.1,3713.3,3.0]
[1733009836353,1.5026,3714.1,3713.2,5.4967119]
[1733009837975,1.5026,3714.1,3713.6,2.5467119]
[1733009838372,1.5026,3714.9,3713.7,3.0]
[1733009838689,0.0532555,3714.8,3714.0,2.5467119]
[1733009838875,1.5026,3714.9,3714.0,2.5467119]
[1733009839281,1.5026,3714.9,3714.1,3.0]
[1733009840850,1.5026,3714.9,3714.4,2.5467119]
[1733009842384,1.56,3715.3,3714.4,2.5467119]
[1733009842766,0.05321355,3715.2,3714.4,2.5467119]
[1733009843807,0.05321355,3715.2,3714.8,2.5467119]
[1733009844116,1.56,3715.3,3714.8,2.5467119]
[1733009844263,1.56,3715.8,3715.3,3.0]
[1733009844471,1.56,3716.2,3715.3,3.0]
[1733009845974,0.05336837,3716.1,3715.3,3.0]
[1733009846168,0.16133684,3716.0,3715.3,3.0]
[1733009846570,0.05332693,3715.9,3715.3,3.0]
[1733009847282,0.05341951,3715.8,3715.3,3.0]
[1733009847488,1.56,3716.2,3715.3,3.0]
[1733009849589,0.05348167,3716.1,3715.3,3.0]
[1733009850838,0.55,3716.0,3715.3,3.0]
[1733009850995,1.56,3715.9,3715.3,4.6193]
[1733009851194,0.05347658,3715.9,3715.3,4.6193]
[1733009851741,1.56,3716.2,3715.3,4.6193]
[1733009852631,0.55,3716.9,3716.0,2.5467119]
[1733009853302,0.55,3716.5,3715.7,3.0]
[1733009853743,0.05182928,3716.4,3715.7,3.0]
[1733009853896,0.05182928,3716.4,3715.8,1.6193]
[1733009854929,1.56,3716.8,3715.8,1.6193]
[1733009854930,0.55,3716.7,3715.8,1.6193]
[1733009855140,0.0518221,3716.3,3715.8,1.6193]
[1733009855305,0.78792167,3716.7,3715.8,1.6193]
[1733009855509,0.05180138,3716.2,3715.8,1.6193]
[1733009855837,0.57692167,3716.7,3715.7,3.0]
[1733009855994,0.05178066,3716.1,3715.7,3.0]
[1733009856190,0.55,3716.7,3715.7,3.0]
[1733009856631,0.05188181,3716.6,3715.7,3.0]
[1733009856932,0.07880348,3716.6,3715.7,3.0]
[1733009858219,0.05188181,3716.6,3715.7,3.0]
[1733009859747,0.07880348,3716.6,3715.7,3.0]
[1733009860241,0.55,3716.5,3715.7,3.0]
[1733009860539,1.61184281,3716.4,3715.7,3.0]
[1733009862143,1.61184281,3716.4,3715.3,3.0]
[1733009862997,1.61184281,3716.4,3715.7,3.0]
[1733009863360,1.56,3716.4,3715.7,3.0]
[1733009863724,0.05070512,3716.3,3715.7,3.0]
[1733009866209,0.07762679,3716.3,3715.7,3.0]
[1733009866412,1.56,3716.1,3715.3,3.0]
[1733009866831,0.05059249,3716.0,3715.3,3.0]
[1733009871736,0.55,3715.9,3715.3,3.0]
[1733009871941,0.6005902,3715.9,3714.8,1.5089]
[1733009872238,0.55,3716.0,3715.1,3.0]
[1733009872981,0.05063312,3715.9,3715.4,2.5467119]
[1733009873183,1.56,3716.1,3715.4,2.5467119]
[1733009874750,1.56,3716.1,3715.5,3.0]
[1733009875386,2.11,3716.7,3715.5,3.0]
[1733009875600,0.05065138,3716.0,3715.5,3.0]
[1733009875882,0.55,3716.4,3715.5,3.0]
[1733009876041,0.05063066,3715.9,3715.5,3.0]
[1733009876240,0.57692167,3716.6,3715.5,3.0]
[1733009876481,1.56,3716.3,3715.5,3.0]
[1733009876665,0.25202451,3716.2,3715.5,3.0]
[1733009876866,1.56,3716.0,3715.5,3.0]
[1733009877246,0.05063559,3715.9,3715.5,3.0]
[1733009878082,0.05063559,3715.9,3715.4,2.5467119]
[1733009878245,0.05063559,3715.9,3715.1,3.0]
[1733009878581,0.55,3715.9,3715.1,3.0]
[1733009878787,0.55,3715.9,3715.2,1.5089]
[1733009878993,1.56,3716.0,3715.4,2.5467119]
[1733009879281,1.56,3716.0,3715.5,3.0]
[1733009879481,1.56,3716.4,3715.5,3.0]
[1733009879884,0.04902289,3716.3,3715.5,3.0]
[1733009880259,0.04902289,3716.3,3715.9,3.0]
[1733009880462,0.04902289,3716.3,3715.9,4.5089]
[1733009880661,1.56,3716.7,3715.9,4.5089]
[1733009880862,0.2520543,3716.6,3715.9,4.5089]
[1733009881194,1.56,3716.7,3715.9,4.5089]
[1733009882852,1.56,3716.7,3715.9,3.0]
[1733009883067,0.04913369,3716.6,3715.9,3.0]
[1733009889783,0.55,3716.5,3715.8,2.5467119]
[1733009889984,0.59920402,3716.5,3715.8,2.5467119]
[1733009890173,0.81512442,3716.5,3715.8,2.5467119]
[1733009893393,0.54920402,3716.5,3715.8,2.5467119]
[1733009897263,0.04920402,3716.5,3715.8,2.5467119]
[1733009897491,0.04920402,3716.5,3715.9,3.0]
[1733009897701,1.56,3716.7,3715.9,3.0]
[1733009898190,0.04764026,3716.6,3715.9,3.0]
[1733009902819,0.07456193,3716.6,3715.9,3.0]
[1733009905901,1.6285,3716.4,3715.5,3.0]
[1733009906119,0.02692167,3716.3,3715.5,3.0]
[1733009906415,0.04755423,3716.3,3715.5,3.0]
[1733009907007,0.04755423,3716.3,3715.9,1.14716705]
[1733009907519,1.6285,3716.1,3715.6,1.14716705]
[1733009908008,0.04748715,3716.0,3715.6,1.14716705]
[1733009911984,0.55,3715.9,3715.6,1.14716705]
[1733009912207,0.04727979,3715.8,3715.6,1.14716705]
[1733009913785,0.55,3715.7,3715.6,1.14716705]
[1733009913984,0.59725907,3715.7,3715.6,1.14716705]
[1733009914324,0.59725907,3715.7,3714.6,2.720097]
[1733009914325,2.20925907,3715.7,3714.6,2.720097]
[1733009914490,2.20925907,3715.7,3715.3,1.14716705]
[1733009914914,2.162,3715.7,3715.3,1.14716705]
[1733009915319,0.55,3715.5,3715.3,1.14716705]
[1733009915782,0.0472914,3715.4,3715.3,1.14716705]
[1733009915982,0.5972914,3715.4,3715.3,1.14716705]
[1733009916823,0.5972914,3715.4,3715.3,0.84716705]
[1733009918029,0.0472914,3715.4,3715.3,2.49026705]
[1733009918200,1.612,3716.2,3715.3,2.49026705]
[1733009918428,0.04571983,3716.1,3715.8,1.14716705]
[1733009919253,0.55,3716.0,3715.8,1.14716705]
[1733009919453,0.59567839,3715.9,3715.8,1.14716705]
[1733009922172,0.59567839,3715.9,3715.5,1.14716705]
[1733009923311,0.22346001,3715.9,3715.1,3.0]
[1733009923651,0.55,3716.1,3715.4,1.14716705]
[1733009923805,0.55,3715.9,3715.4,1.14716705]
[1733009924012,0.55,3715.7,3715.4,1.14716705]
[1733009924247,0.55,3715.9,3715.4,1.14716705]
[1733009924248,0.04409099,3715.6,3715.4,1.14716705]
[1733009924452,0.55,3716.1,3715.4,1.14716705]
[1733009924611,0.55,3715.9,3715.4,1.14716705]
[1733009925128,0.55,3715.7,3715.4,1.14716705]
[1733009925634,0.04409099,3715.6,3715.4,1.14716705]
[1733009926767,0.55,3715.5,3715.1,1.14716705]
[1733009927276,1.6367,3715.8,3714.7,5.74846705]
[1733009927277,0.55,3715.3,3714.7,5.74846705]
[1733009927658,0.04406272,3715.2,3714.7,5.74846705]
[1733009927998,0.55,3715.2,3715.1,1.14716705]
[1733009932456,0.55,3715.2,3714.7,5.74846705]
[1733009932457,0.55,3715.2,3714.7,4.6013]
[1733009932793,0.55,3715.1,3714.6,4.076997]
[1733009933007,0.04402126,3715.0,3714.6,4.076997]
[1733009933896,0.04402126,3715.0,3714.9,1.14716705]
[1733009934259,0.55,3715.1,3714.9,1.14716705]
[1733009935757,0.04402126,3715.0,3714.9,1.14716705]
[1733009935997,0.55,3715.4,3714.7,5.2943341]
[1733009936169,0.55,3715.4,3715.3,1.14716705]
[1733009936368,0.55,3715.7,3715.3,1.14716705]
[1733009936596,0.55,3715.5,3715.3,1.14716705]
[1733009936804,0.04408324,3715.4,3715.3,1.14716705]
[1733009937013,0.59408324,3715.4,3715.3,1.14716705]
[1733009937696,0.59408324,3715.4,3714.7,5.74846705]
[1733009937697,0.59408324,3715.4,3714.7,4.6013]
[1733009937855,1.6367,3715.2,3715.0,1.14716705]
[1733009938199,0.59406895,3715.1,3715.0,1.14716705]
[1733009938360,0.55,3715.1,3715.0,1.14716705]
[1733009941285,1.6367,3715.2,3715.0,1.14716705]
[1733009941286,1.3394,3715.9,3715.1,4.4423]
[1733009941615,1.3394,3716.3,3715.8,1.14716705]
[1733009942721,0.57692167,3716.2,3715.5,1.14716705]
[1733009943276,0.55,3716.2,3715.5,1.14716705]
[1733009943919,0.04272857,3716.1,3715.5,1.14716705]
[1733009944224,0.55,3716.0,3715.5,1.14716705]
[1733009944389,0.55,3715.8,3715.5,1.14716705]
[1733009944774,0.04264568,3715.7,3715.5,1.14716705]
[1733009945221,0.04262496,3715.6,3715.5,1.14716705]
[1733009945430,0.55,3716.2,3715.5,1.14716705]
[1733009945625,0.55,3716.0,3715.5,1.14716705]
[1733009945782,0.55,3715.8,3715.5,1.14716705]
[1733009945977,0.04264568,3715.7,3715.5,1.14716705]
[1733009946283,0.55,3716.1,3715.5,1.14716705]
[1733009946510,0.04262496,3715.6,3715.5,1.14716705]
[1733009946829,0.04267176,3715.6,3715.5,1.14716705]
[1733009948017,0.04267176,3715.6,3715.2,1.14716705]
[1733009948235,0.55,3715.9,3715.2,1.14716705]
[1733009948385,0.55,3715.7,3715.2,1.14716705]
[1733009948593,0.04259993,3715.6,3715.2,1.14716705]
[1733009948825,0.55,3715.9,3715.2,1.14716705]
[1733009949022,0.55,3715.7,3715.2,1.14716705]
[1733009949225,0.59259993,3715.6,3715.5,1.14716705]
[1733009950619,0.55,3715.6,3715.5,1.14716705]
[1733009952296,0.55,3716.2,3715.5,1.14716705]
[1733009952722,0.55,3716.0,3715.5,1.14716705]
[1733009953144,0.55,3715.8,3715.5,1.14716705]
[1733009953509,0.04261707,3715.7,3715.5,1.14716705]
[1733009954041,0.04259993,3715.6,3715.5,1.14716705]
[1733009954343,1.8894,3715.6,3715.2,4.14716705]
[1733009954836,0.04251535,3715.5,3715.2,4.14716705]
[1733009955039,0.55,3715.4,3715.2,1.14716705]
[1733009955251,0.04247389,3715.3,3715.2,1.14716705]